bitfinex/quotes_ETHUSD_20240630
["timestamp","ask_amount","ask_price","bid_price","bid_amount"]
[1719735667580,1.07762755,3398.9,3398.8,2.4283]
[1719735667779,1.07762755,3399.3,3398.8,2.4283]
[1719735667975,7.29972194,3399.4,3398.8,2.7221243]
[1719735667976,1.07762755,3399.2,3398.8,2.7221243]
[1719735668299,1.07762755,3399.1,3398.9,0.05314885]
[1719735668482,1.07762755,3399.0,3398.9,0.05314885]
[1719735668874,1.07762755,3399.3,3398.9,0.05314885]
[1719735669191,1.07762755,3399.2,3399.0,2.4283]
[1719735669499,1.07763452,3399.1,3399.0,2.4283]
[1719735669674,0.851,3399.8,3399.2,2.4283]
[1719735669880,3.08945045,3399.9,3399.2,2.4283]
[1719735670112,1.92854968,3399.8,3399.2,2.4283]
[1719735670314,1.07754968,3399.7,3399.2,2.4283]
[1719735670516,1.07754968,3399.6,3399.2,2.4283]
[1719735670674,1.07754968,3399.5,3399.3,0.05321659]
[1719735670878,0.851,3399.8,3399.2,2.4283]
[1719735670879,1.07754968,3399.4,3399.2,2.4283]
[1719735671183,1.07754968,3399.3,3399.2,2.75623]
[1719735671980,0.851,3399.8,3399.2,2.75623]
[1719735672207,0.851,3399.8,3399.2,2.4283]
[1719735672795,0.851,3399.6,3399.2,2.4283]
[1719735676700,1.92893517,3399.6,3399.2,2.4283]
[1719735676904,1.07793517,3399.5,3399.2,2.4283]
[1719735677205,1.07793517,3399.4,3399.2,2.4283]
[1719735677406,1.07793517,3399.3,3399.2,2.4283]
[1719735677608,0.851,3399.6,3399.2,2.4283]
[1719735677805,1.07793517,3400.0,3399.2,2.4283]
[1719735678029,0.851,3399.6,3399.2,2.4283]
[1719735679500,1.07787895,3400.1,3399.2,2.4283]
[1719735679696,0.851,3400.0,3399.2,2.4283]
[1719735679898,1.07787895,3400.1,3399.2,2.75623]
[1719735680137,1.07785415,3400.0,3399.2,2.75623]
[1719735680318,1.07785415,3399.9,3399.2,2.75623]
[1719735680637,1.07785415,3399.8,3399.3,0.275623]
[1719735680945,1.07785415,3399.7,3399.3,0.275623]
[1719735681234,1.07785415,3399.6,3399.3,0.275623]
[1719735681420,1.07785415,3399.5,3399.4,0.2703923]
[1719735681636,0.851,3400.0,3399.4,2.6439923]
[1719735681937,0.851,3400.0,3399.4,2.3736]
[1719735682140,1.07785415,3400.1,3399.4,2.3736]
[1719735682308,8.46110919,3400.3,3399.6,2.3736]
[1719735682309,1.077809,3400.0,3399.6,2.3736]
[1719735682495,1.077809,3399.9,3399.8,2.3736]
[1719735682695,3.09020762,3400.2,3399.8,2.3736]
[1719735683696,1.077809,3400.1,3399.8,2.3736]
[1719735683925,1.077809,3400.0,3399.8,2.3736]
[1719735684104,1.077809,3399.9,3399.8,2.3736]
[1719735684300,1.077809,3400.2,3399.8,2.69606]
[1719735685331,1.07767383,3400.1,3399.8,2.69606]
[1719735685602,1.07767383,3400.0,3399.8,2.69606]
[1719735685819,1.07769982,3399.9,3399.8,2.3736]
[1719735686105,6.44872194,3400.3,3399.8,2.3736]
[1719735686410,1.07767925,3400.2,3399.8,2.3736]
[1719735686806,1.07767925,3400.1,3399.9,0.05301716]
[1719735687006,1.07767925,3400.0,3399.9,0.05301716]
[1719735687861,1.07767925,3400.5,3399.9,0.29567888]
[1719735688031,1.0775624,3400.4,3399.9,0.29567888]
[1719735688236,1.0775624,3400.3,3399.9,0.24266172]
[1719735688562,1.07755295,3400.2,3399.8,2.3736]
[1719735688725,0.851,3400.5,3399.8,2.3736]
[1719735688925,1.92848736,3400.5,3399.8,2.3736]
[1719735689241,1.07748736,3400.5,3399.8,2.69606]
[1719735689538,0.851,3400.4,3399.8,2.69606]
[1719735689741,0.851,3400.4,3399.9,0.05301716]
[1719735690848,1.07748736,3400.5,3399.9,0.05301716]
[1719735691158,1.07748736,3400.5,3399.8,2.69606]
[1719735691359,0.851,3400.6,3399.9,0.269606]
[1719735691560,1.92843935,3400.6,3399.9,0.269606]
[1719735692237,1.07743935,3400.6,3399.9,1.120606]
[1719735692441,1.07743935,3400.6,3400.0,2.4344]
[1719735692642,0.851,3400.8,3400.1,0.6251066]
[1719735692937,1.92836584,3400.8,3400.0,2.4344]
[1719735693139,1.92836584,3400.8,3400.2,0.05298895]
[1719735693338,1.92836584,3400.8,3400.0,2.4344]
[1719735693339,1.07736584,3400.7,3400.0,2.4344]
[1719735693661,1.07736584,3400.6,3400.0,2.76294]
[1719735693858,0.851,3400.8,3400.0,2.76294]
[1719735694059,0.851,3400.8,3400.1,0.05298895]
[1719735696271,1.07740387,3400.9,3400.1,0.33458185]
[1719735696445,1.92840387,3400.8,3400.1,0.33458185]
[1719735696642,0.851,3400.8,3400.2,2.4344]
[1719735697151,0.851,3400.8,3400.3,0.05298895]
[1719735697354,0.851,3400.8,3400.2,2.4344]
[1719735697576,0.851,3400.8,3400.4,0.05298895]
[1719735697773,0.851,3400.8,3400.2,2.4344]
[1719735697975,0.851,3400.8,3400.5,0.05298895]
[1719735698279,1.07726903,3401.0,3400.2,2.4344]
[1719735698576,0.851,3401.1,3400.7,2.4344]
[1719735699545,1.92824317,3401.1,3400.7,2.4344]
[1719735700092,0.851,3401.1,3400.7,2.4344]
[1719735701552,0.851,3400.9,3400.8,0.05281967]
[1719735701751,0.851,3400.9,3400.1,2.3958]
[1719735701987,0.851,3400.9,3400.8,0.05281967]
[1719735702288,0.851,3400.9,3400.1,2.3958]
[1719735702682,0.851,3400.9,3400.2,0.05281967]
[1719735704487,0.851,3400.9,3400.1,2.3958]
[1719735705002,0.851,3400.9,3400.2,0.05278206]
[1719735712518,1.07703655,3401.0,3400.2,0.05278206]
[1719735712725,1.92803655,3401.0,3400.2,0.05278206]
[1719735713220,0.851,3401.0,3400.2,0.05278206]
[1719735713406,1.92815623,3401.0,3400.2,0.05278206]
[1719735713605,1.92815623,3401.0,3400.2,0.41277708]
[1719735713782,1.92815623,3401.0,3400.3,2.4025]
[1719735713987,1.92815623,3401.0,3400.3,2.45521436]
[1719735714223,1.07715623,3401.0,3400.3,2.45521436]
[1719735714796,0.851,3401.2,3400.3,2.45521436]
[1719735714996,1.92815868,3401.2,3400.3,2.76315825]
[1719735716491,0.851,3401.2,3400.3,2.76315825]
[1719735716696,1.92822731,3401.2,3400.3,2.76315825]
[1719735718826,0.851,3400.8,3400.3,2.4025]
[1719735718987,0.851,3401.0,3400.4,0.05271436]
[1719735720341,3.2604,3400.8,3400.0,2.4025]
[1719735720644,1.07742034,3400.7,3400.1,0.05273504]
[1719735722009,3.2604,3400.8,3400.1,0.05273504]
[1719735722193,1.07742283,3400.7,3400.0,2.4025]
[1719735722399,1.07742283,3400.7,3400.2,0.05273504]
[1719735722608,1.07742283,3400.7,3400.0,2.4025]
[1719735722854,3.2604,3400.8,3400.3,0.05273504]
[1719735723147,1.07752073,3400.7,3400.0,2.4025]
[1719735723509,1.07752073,3400.7,3400.1,0.05273504]
[1719735723853,1.07752073,3400.7,3400.0,2.4025]
[1719735724031,1.07752073,3400.7,3400.2,0.05273504]
[1719735724200,1.07752073,3400.7,3400.0,2.4025]
[1719735724540,1.07752073,3400.7,3400.3,0.05273504]
[1719735724780,1.07752073,3400.7,3400.0,2.4025]
[1719735724944,1.07752073,3400.7,3400.0,2.67263647]
[1719735725331,1.07750237,3400.6,3400.0,2.67263647]
[1719735725569,1.07750237,3400.5,3400.1,0.05273504]
[1719735725731,1.07750237,3400.4,3400.1,0.05273504]
[1719735725953,1.07750237,3400.3,3400.1,0.05273504]
[1719735726182,2.4094,3400.8,3400.1,0.05273504]
[1719735726183,1.07750237,3400.2,3400.1,0.05273504]
[1719735726481,1.92850237,3400.2,3399.3,2.3613]
[1719735726627,1.92850237,3400.2,3399.3,2.715284]
[1719735726628,1.07750237,3400.1,3399.3,2.715284]
[1719735726826,1.07750237,3400.0,3399.3,2.715284]
[1719735727053,1.07750237,3399.9,3399.3,2.715284]
[1719735727257,1.07750237,3399.8,3399.3,2.715284]
[1719735727461,1.07750237,3399.7,3399.3,2.715284]
[1719735727678,1.07750237,3399.6,3399.5,2.3613]
[1719735727877,0.851,3400.5,3399.5,2.3613]
[1719735729131,0.51002075,3400.4,3399.5,2.3613]
[1719735729332,0.51002075,3400.3,3399.5,2.3613]
[1719735729533,1.58788991,3400.4,3400.0,2.3613]
[1719735729844,1.58788991,3400.3,3400.1,0.32123]
[1719735730044,1.58788991,3400.2,3400.0,2.3613]
[1719735730266,1.58788991,3400.1,3400.0,2.3613]
[1719735730433,0.51002075,3400.1,3400.0,2.3613]
[1719735731443,3.0,3400.7,3400.0,2.3613]
[1719735731645,0.50996425,3400.1,3400.0,2.3613]
[1719735731885,1.92863007,3400.6,3400.0,2.59743]
[1719735731886,0.851,3400.6,3400.0,2.59743]
[1719735732201,0.50996431,3400.5,3400.0,2.3613]
[1719735732328,0.50996431,3400.4,3400.0,2.3613]
[1719735732532,0.50996431,3400.3,3400.0,2.3613]
[1719735733595,0.50996431,3400.2,3399.7,2.3613]
[1719735733893,0.50996431,3400.1,3399.7,2.3613]
[1719735734032,0.50996431,3400.2,3399.7,2.3613]
[1719735734235,0.50996431,3400.1,3399.7,2.68253]
[1719735734465,0.851,3400.6,3399.8,0.05287797]
[1719735734677,0.50995296,3400.0,3399.8,0.05287797]
[1719735734830,0.50995296,3399.9,3399.8,0.2735408]
[1719735735036,0.50995296,3399.9,3399.7,2.3613]
[1719735735239,0.50995296,3399.8,3399.7,2.3613]
[1719735737693,3.0,3400.7,3399.7,2.3613]
[1719735737980,1.58739391,3400.6,3399.7,2.71262032]
[1719735738143,0.50992571,3400.5,3399.7,2.71262032]
[1719735739002,2.78622571,3400.5,3399.7,2.71262032]
[1719735739208,1.58739391,3400.4,3399.7,2.3613]
[1719735739337,0.50992571,3400.3,3399.7,2.3613]
[1719735740153,3.851,3400.7,3399.8,0.05882419]
[1719735740364,3.0,3400.7,3399.9,2.3613]
[1719735740978,1.58739423,3400.6,3399.9,2.3613]
[1719735741163,3.0,3400.7,3399.8,1.08713]
[1719735741164,0.50992582,3400.5,3400.1,2.2948]
[1719735742271,3.0,3400.7,3400.1,2.2948]
[1719735742582,1.58738767,3400.6,3400.1,2.2948]
[1719735742792,1.58738767,3400.6,3400.2,2.60938]
[1719735742793,0.50992451,3400.5,3400.2,2.60938]
[1719735742988,0.50992451,3400.4,3400.2,2.2948]
[1719735743285,0.50992451,3400.3,3400.2,2.2948]
[1719735743449,0.50992451,3400.3,3400.2,2.60938]
[1719735745443,1.07746316,3400.6,3400.2,2.60938]
[1719735745647,0.50991902,3400.5,3400.2,2.2948]
[1719735745843,3.0,3400.7,3400.2,2.2948]
[1719735746086,1.58734697,3400.6,3400.2,2.2948]
[1719735746287,0.50991668,3400.5,3400.2,2.2948]
[1719735746583,0.50991668,3400.4,3400.2,2.2948]
[1719735746747,0.50991668,3400.3,3400.2,2.2948]
[1719735747383,1.58734697,3400.3,3400.2,2.55401292]
[1719735748452,0.50991668,3400.3,3400.2,2.55401292]
[1719735748660,0.50992443,3400.3,3400.2,2.55401292]
[1719735749206,0.50992443,3400.3,3400.2,2.60685328]
[1719735749353,0.50992443,3400.3,3400.2,3.45785328]
[1719735751808,10.15972194,3401.1,3400.2,3.45785328]
[1719735751960,1.58706426,3401.0,3400.2,3.45785328]
[1719735752344,0.50986232,3400.9,3400.3,0.34578533]
[1719735754405,0.50986232,3400.5,3400.0,0.3912423]
[1719735754558,0.50986232,3400.7,3400.0,0.3912423]
[1719735754760,0.851,3400.9,3400.0,0.3912423]
[1719735755093,0.851,3400.9,3400.1,0.37239523]
[1719735755094,0.50989208,3400.8,3400.1,0.37239523]
[1719735755254,0.50989208,3400.7,3400.1,0.37239523]
[1719735755595,0.50989208,3400.7,3400.2,0.05270118]
[1719735756876,0.50989208,3400.7,3399.9,0.22561]
[1719735756877,2.3313,3400.6,3399.9,0.22561]
[1719735757083,0.851,3400.4,3400.3,0.05270118]
[1719735757394,0.851,3400.4,3399.7,2.2561]
[1719735757395,2.43821902,3400.4,3399.7,2.2561]
[1719735757596,3.1823,3400.6,3400.3,0.05270118]
[1719735757774,1.58759355,3400.5,3399.7,2.2561]
[1719735758093,3.1823,3400.6,3399.8,0.05270118]
[1719735758094,1.58761375,3400.4,3399.8,0.05270118]
[1719735758256,1.58761375,3400.3,3399.7,2.2561]
[1719735758462,1.58764466,3400.2,3399.9,0.05270118]
[1719735758691,1.58764466,3400.1,3399.7,2.2561]
[1719735758998,1.58764466,3400.0,3399.7,2.2561]
[1719735759209,1.58764466,3399.9,3399.7,2.51039037]
[1719735759369,1.58763572,3399.8,3399.7,2.51039037]
[1719735759561,1.58763572,3399.8,3399.7,2.2561]
[1719735759761,0.50997393,3399.8,3399.7,2.2561]
[1719735761208,0.50994303,3399.8,3399.7,2.2561]
[1719735761409,0.50994109,3399.8,3399.7,2.2561]
[1719735764103,0.50994109,3399.8,3399.7,2.30891778]
[1719735764269,0.851,3400.6,3399.7,2.30891778]
[1719735764464,0.50996529,3400.5,3399.7,2.30891778]
[1719735764666,0.50996529,3400.4,3399.7,2.2561]
[1719735764862,0.50996529,3400.3,3399.7,2.2561]
[1719735765095,0.50996529,3400.4,3399.7,2.2561]
[1719735765261,0.50996529,3400.3,3399.7,2.2561]
[1719735765464,0.50996529,3400.2,3399.8,0.05281778]
[1719735765700,0.50996529,3400.1,3399.7,2.2561]
[1719735765864,0.50996529,3400.0,3399.9,0.05281966]
[1719735766065,0.50996529,3400.0,3399.7,2.2561]
[1719735766297,0.50996529,3399.9,3399.7,2.59549037]
[1719735766460,0.50996529,3399.8,3399.7,2.59549037]
[1719735766670,0.50996529,3399.8,3399.7,2.2561]
[1719735767581,0.50996048,3399.8,3399.6,0.28680373]
[1719735767793,0.50996048,3399.7,3399.5,2.2974]
[1719735767968,0.50996048,3400.2,3399.6,0.31484]
[1719735769503,0.50996048,3400.2,3399.7,2.2974]
[1719735769709,1.58757474,3400.2,3399.8,0.261224]
[1719735769916,0.851,3400.7,3399.8,0.261224]
[1719735769917,1.58757474,3400.1,3399.8,0.261224]
[1719735770127,1.58757474,3400.0,3399.8,0.261224]
[1719735770276,1.58757474,3399.9,3399.8,0.261224]
[1719735770482,0.50996048,3399.9,3399.7,3.1484]
[1719735770684,0.851,3400.7,3399.7,3.1484]
[1719735770884,0.5099469,3399.8,3399.7,3.1484]
[1719735771182,0.50994945,3399.8,3399.7,3.46324]
[1719735773905,0.50994396,3399.8,3399.7,3.46324]
[1719735774088,0.50994392,3399.8,3399.7,3.46324]
[1719735776827,6.44872194,3400.4,3399.7,3.46324]
[1719735777039,1.58748517,3400.3,3399.9,0.851]
[1719735777239,0.50994326,3400.2,3399.9,0.851]
[1719735777445,0.50994326,3400.1,3400.0,0.05285728]
[1719735777649,0.50994326,3400.1,3400.0,2.35025728]
[1719735777825,0.50994326,3400.1,3400.0,2.67038301]
[1719735779525,6.44872194,3401.4,3400.0,2.72919908]
[1719735779760,1.07719588,3401.3,3400.6,2.2974]
[1719735779959,2.4783,3401.5,3400.7,0.31484]
[1719735780164,1.0770893,3401.4,3400.6,2.2974]
[1719735781239,4.0770893,3401.4,3400.6,2.2974]
[1719735781450,1.0770893,3401.3,3400.6,2.2974]
[1719735782390,3.0,3401.4,3400.6,2.2974]
[1719735782679,1.92808782,3401.3,3400.6,2.2974]
[1719735782969,1.07710256,3401.2,3400.6,2.2974]
[1719735783425,1.07710256,3401.1,3400.6,2.2974]
[1719735783626,1.07710256,3401.0,3400.4,2.4908]
[1719735783828,1.07710256,3400.9,3400.5,0.38702599]
[1719735784063,1.07710256,3400.8,3400.5,0.38702599]
[1719735784265,1.07710256,3400.7,3400.5,0.38702599]
[1719735784480,1.07710256,3400.6,3400.5,0.38702599]
[1719735784676,7.29972194,3401.3,3400.5,0.38702599]
[1719735784830,1.07709689,3401.2,3400.6,0.3728826]
[1719735785539,1.07709516,3401.1,3400.6,0.3728826]
[1719735785741,1.07709516,3401.0,3400.6,0.3728826]
[1719735785939,1.07709516,3400.9,3400.7,0.28636826]
[1719735786207,1.07709516,3400.8,3400.7,0.28636826]
[1719735786349,1.07709516,3401.2,3400.7,0.28636826]
[1719735786544,1.07709516,3401.1,3400.7,0.28636826]
[1719735786749,1.07709516,3401.0,3400.7,0.28636826]
[1719735787113,1.07709516,3400.9,3400.7,0.28636826]
[1719735787258,1.07709516,3400.8,3400.4,2.4908]
[1719735787576,1.07709516,3400.7,3400.4,2.4908]
[1719735787796,2.4347,3401.1,3400.4,2.4908]
[1719735787996,1.07712281,3401.0,3400.4,2.82498]
[1719735788474,1.07712281,3401.0,3400.5,0.05276699]
[1719735788693,2.4347,3401.1,3400.4,2.82498]
[1719735788694,1.07712228,3400.9,3400.4,2.82498]
[1719735788878,1.07712228,3400.8,3400.4,2.82498]
[1719735789196,1.07712228,3400.7,3400.4,2.82498]
[1719735789362,2.4347,3401.1,3400.5,0.367598]
[1719735789700,1.07712312,3401.0,3400.5,0.05276699]
[1719735789849,1.07712312,3401.0,3400.4,2.4908]
[1719735791445,1.07712312,3400.9,3400.4,2.4908]
[1719735791644,1.07712312,3400.8,3400.4,2.4908]
[1719735791863,9.73442194,3401.3,3400.4,2.4908]
[1719735792091,1.07714198,3401.2,3400.4,2.82498]
[1719735794684,1.07714198,3401.2,3400.5,0.851]
[1719735794884,1.07714198,3401.1,3400.5,0.851]
[1719735795140,1.07708114,3401.0,3400.6,0.42029354]
[1719735795427,3.0,3401.4,3400.6,0.42029354]
[1719735795633,1.07710379,3401.3,3400.6,0.42029354]
[1719735795781,1.07710379,3401.3,3400.6,0.367598]
[1719735796152,1.07710379,3401.3,3400.8,0.851]
[1719735797178,1.07710379,3401.2,3400.8,0.851]
[1719735797418,1.07710379,3401.1,3400.8,0.851]
[1719735797624,3.0,3401.5,3400.8,0.851]
[1719735797818,1.07695851,3401.4,3400.8,0.851]
[1719735798029,3.0,3401.5,3400.8,0.851]
[1719735798337,1.07694207,3401.4,3400.8,0.851]
[1719735798542,1.07694207,3401.3,3400.8,0.851]
[1719735798839,1.07694207,3401.2,3400.7,2.3828]
[1719735799044,1.07694207,3401.1,3400.7,2.62108]
[1719735799186,3.0,3401.6,3400.7,2.62108]
[1719735799384,1.07694292,3401.5,3400.8,0.05258275]
[1719735801327,3.0,3401.6,3400.8,0.05258275]
[1719735801530,1.07694322,3401.5,3400.8,0.05258275]
[1719735802424,3.0,3401.6,3400.8,0.05258275]
[1719735802728,1.07694131,3401.5,3400.8,0.05258275]
[1719735803792,1.07694131,3401.5,3400.9,2.3351]
[1719735804328,1.07694131,3401.4,3401.0,0.05257899]
[1719735804624,1.07694131,3401.3,3401.0,0.05257899]
[1719735804922,1.07694198,3401.2,3401.0,0.05257899]
[1719735805129,3.851,3401.7,3400.9,2.3351]
[1719735805290,1.0769421,3401.6,3400.9,2.65371]
[1719735805493,1.0769421,3401.6,3401.0,0.05257899]
[1719735807915,3.851,3401.7,3401.0,0.05257899]
[1719735808231,1.07693832,3401.6,3401.0,0.05257899]
[1719735808532,0.851,3401.7,3400.9,2.3351]
[1719735808533,1.07695389,3401.5,3400.9,2.3351]
[1719735808689,1.07695389,3401.4,3400.9,2.68312815]
[1719735808893,1.07695389,3401.3,3401.0,0.05257899]
[1719735809093,1.07695389,3401.2,3401.0,0.05257899]
[1719735809328,0.851,3401.7,3401.0,0.05257899]
[1719735809491,1.92795235,3401.7,3400.9,2.3351]
[1719735809696,1.07695235,3401.7,3401.0,0.31861]
[1719735809916,1.07695235,3401.7,3401.0,0.37117395]
[1719735810123,1.07695235,3401.7,3401.0,0.31861]
[1719735810428,1.07695235,3401.7,3401.1,0.40303495]
[1719735810793,1.07695235,3401.7,3401.1,0.350471]
[1719735811031,3.851,3401.8,3401.1,0.350471]
[1719735811331,1.07679942,3401.7,3401.1,0.350471]
[1719735811496,1.07679942,3401.7,3401.2,0.0525414]
[1719735812199,1.07680402,3401.6,3401.2,0.0525414]
[1719735812402,1.07680402,3401.5,3401.1,0.350471]
[1719735812614,1.07680402,3401.4,3401.3,0.0525414]
[1719735812900,1.07680402,3401.4,3400.9,2.3351]
[1719735813105,3.851,3401.8,3401.2,0.2685571]
[1719735813335,1.07678023,3401.7,3401.3,2.4669]
[1719735813667,1.07678023,3401.7,3401.3,2.5194414]
[1719735813806,1.07678023,3401.6,3401.3,2.5194414]
[1719735814007,1.07678023,3401.5,3401.3,2.5194414]
[1719735814208,6.44872194,3401.9,3401.4,0.33704414]
[1719735814408,1.07671463,3401.8,3401.3,2.5194414]
[1719735814610,1.07671463,3401.7,3401.3,2.4669]
[1719735814811,1.07671463,3401.6,3401.3,2.4669]
[1719735815109,1.07671463,3401.5,3401.4,0.0525414]
[1719735815322,1.07671463,3401.5,3401.4,0.3843314]
[1719735815909,1.07671463,3402.0,3401.4,0.3843314]
[1719735816111,1.07671463,3401.9,3401.3,2.4669]
[1719735816389,1.07671463,3401.8,3401.3,2.4669]
[1719735816677,1.07671463,3401.7,3401.3,2.4669]
[1719735816965,1.07671463,3401.6,3401.3,2.79869]
[1719735817146,1.07671463,3401.5,3401.3,2.79869]
[1719735817466,3.0,3402.1,3401.3,2.79869]
[1719735817609,1.07671289,3402.0,3401.3,2.79869]
[1719735820234,1.07671289,3402.0,3401.4,0.364969]
[1719735820438,1.92771289,3402.0,3401.0,0.851]
[1719735820648,2.4319,3401.9,3401.0,0.851]
[1719735820826,1.07672345,3401.8,3401.0,0.851]
[1719735821024,2.4319,3401.9,3401.1,2.4669]
[1719735821349,2.4319,3401.9,3401.2,0.33179]
[1719735821350,1.0767291,3401.8,3401.2,0.33179]
[1719735823654,1.0767291,3401.7,3401.2,0.33179]
[1719735823820,0.851,3402.0,3401.2,0.33179]
[1719735824150,0.851,3402.0,3401.1,2.4669]
[1719735824151,1.92771736,3402.0,3401.3,0.41744836]
[1719735827052,0.851,3402.0,3401.3,0.41744836]
[1719735827238,1.92771655,3402.0,3401.3,0.41744836]
[1719735828514,1.92771655,3402.0,3401.3,0.05247936]
[1719735828711,1.92771655,3402.0,3401.1,2.4669]
[1719735830321,1.07677689,3401.9,3401.1,2.4669]
[1719735830558,1.07677689,3401.8,3401.1,2.4669]
[1719735830755,0.851,3402.0,3401.1,2.4669]
[1719735831022,0.851,3402.0,3401.2,0.05247936]
[1719735831023,1.92773312,3402.0,3401.2,0.05247936]
[1719735831429,1.92773312,3402.0,3401.1,2.4669]
[1719735833476,1.07682321,3401.9,3401.1,2.4669]
[1719735833622,1.07682321,3401.8,3401.1,2.4669]
[1719735833815,1.07682321,3401.7,3401.1,2.79869]
[1719735834024,1.07682321,3401.6,3401.1,2.79869]
[1719735834269,1.07682321,3401.5,3401.2,0.364969]
[1719735834472,1.07682321,3401.4,3401.2,0.41743146]
[1719735834678,1.07682321,3401.3,3401.2,0.41743146]
[1719735834962,1.07682321,3401.3,3401.2,3.19176246]
[1719735835119,1.07682321,3402.0,3401.2,3.19176246]
[1719735835319,1.07682321,3401.9,3401.2,3.1393]
[1719735835515,1.07682321,3401.8,3401.2,3.1393]
[1719735835720,1.07682321,3401.7,3401.3,0.31393]
[1719735835941,1.07682321,3401.6,3401.3,0.36639246]
[1719735836143,1.07682321,3401.5,3401.4,0.26546925]
[1719735836540,1.07671926,3401.5,3401.4,0.31793171]
[1719735836743,1.07671926,3402.0,3401.4,0.31793171]
[1719735837054,1.07671926,3401.9,3401.4,0.31793171]
[1719735837227,1.07671926,3401.8,3401.4,0.31793171]
[1719735837554,1.07671926,3401.7,3401.4,0.05246246]
[1719735837851,1.07671926,3401.6,3401.4,0.05246246]
[1719735838057,1.07671926,3401.5,3401.4,0.05246246]
[1719735838257,1.07671926,3402.0,3401.4,0.05246246]
[1719735839860,1.07674024,3401.9,3401.4,0.05246246]
[1719735840026,1.07674024,3401.8,3401.4,0.05246246]
[1719735840229,1.07674024,3401.7,3401.4,0.05246246]
[1719735840462,1.07674024,3401.6,3401.2,2.2883]
[1719735840790,1.07674024,3401.5,3401.3,0.36639246]
[1719735841100,1.07674024,3401.4,3401.3,0.05246246]
[1719735841557,1.07674024,3401.7,3401.3,0.05246246]
[1719735841763,1.07674024,3401.7,3401.0,2.4088]
[1719735841971,1.07674024,3401.7,3401.1,0.37840111]
[1719735842271,1.0769784,3401.6,3401.1,0.37840111]
[1719735842475,2.3651,3401.8,3401.1,0.37840111]
[1719735842630,2.3651,3401.8,3401.3,0.463085]
[1719735842631,1.07695939,3401.7,3401.3,0.463085]
[1719735843026,0.851,3401.6,3401.3,0.463085]
[1719735843595,0.851,3401.6,3401.4,0.0506832]
[1719735843769,0.851,3401.6,3401.3,0.463085]
[1719735843972,0.851,3401.6,3401.4,0.0506832]
[1719735844131,0.851,3401.6,3401.3,0.463085]
[1719735844339,0.851,3401.6,3401.4,0.05075273]
[1719735844540,0.851,3401.6,3401.3,0.463085]
[1719735844743,0.851,3401.6,3401.4,0.05075273]
[1719735845039,0.851,3401.6,3401.3,0.463085]
[1719735845252,1.92819361,3401.6,3401.3,0.463085]
[1719735845491,1.07719361,3401.5,3401.4,0.05075273]
[1719735845992,1.07719361,3401.5,3401.3,0.463085]
[1719735846155,1.07719361,3401.4,3401.3,0.463085]
[1719735846355,0.851,3401.6,3401.3,0.463085]
[1719735849356,1.07719798,3401.7,3401.3,0.463085]
[1719735849357,0.851,3401.4,3401.3,0.463085]
[1719735849658,3.2161,3401.4,3401.3,0.463085]
[1719735849856,4.29329798,3401.4,3401.3,0.463085]
[1719735851493,3.2161,3401.4,3401.3,0.463085]
[1719735851794,4.29339928,3401.4,3401.3,0.463085]
[1719735851966,4.29338822,3401.4,3401.3,0.463085]
[1719735854292,4.29338822,3401.4,3401.3,0.51383773]
[1719735854509,7.29338822,3401.4,3401.3,0.51383773]
[1719735854658,7.84354056,3401.4,3401.3,0.463085]
[1719735854862,6.44254056,3401.4,3401.3,0.463085]
[1719735855061,7.29354056,3401.4,3401.3,0.463085]
[1719735857799,6.2161,3401.4,3401.3,0.463085]
[1719735858003,7.29359414,3401.4,3401.3,0.463085]
[1719735860884,6.2161,3401.4,3401.3,0.463085]
[1719735861085,7.29353181,3401.4,3401.3,0.463085]
[1719735861263,7.29353181,3401.4,3401.3,0.51401067]
[1719735861464,7.29353187,3401.4,3401.3,0.463085]
[1719735862707,6.2161,3401.4,3401.3,0.463085]
[1719735863002,7.29362337,3401.4,3401.3,0.463085]
[1719735863999,7.84362337,3401.4,3401.3,0.463085]
[1719735864200,7.84377616,3401.4,3401.3,0.463085]
[1719735867287,6.7661,3401.4,3401.3,0.463085]
[1719735867592,7.84376565,3401.4,3401.3,0.463085]
[1719735870519,6.7661,3401.4,3401.3,0.463085]
[1719735870696,7.84372332,3401.4,3401.3,0.463085]
[1719735873818,7.84376068,3401.4,3401.3,0.463085]
[1719735874412,7.84376082,3401.4,3401.3,0.463085]
[1719735876884,6.7661,3401.4,3401.3,0.463085]
[1719735877090,7.84376174,3401.4,3401.3,0.463085]
[1719735880340,7.84373284,3401.4,3401.3,0.463085]
[1719735881824,8.15147181,3401.4,3401.3,0.463085]
[1719735882120,7.84373284,3401.4,3401.3,0.463085]
[1719735882423,11.84373284,3401.4,3401.3,0.463085]
[1719735883407,13.85629408,3401.4,3401.3,0.463085]
[1719735884888,11.84390298,3401.4,3401.3,0.463085]
[1719735886194,8.62780298,3401.4,3401.3,0.463085]
[1719735886508,8.401,3401.4,3401.3,0.463085]
[1719735886686,9.47854046,3401.4,3401.3,0.463085]
[1719735887131,9.47850606,3401.4,3401.3,0.463085]
[1719735888025,5.47850606,3401.4,3401.3,0.463085]
[1719735888226,2.47850606,3401.4,3401.3,0.463085]
[1719735889948,2.47865289,3401.4,3401.3,0.463085]
[1719735893168,2.47864176,3401.4,3401.3,0.463085]
[1719735894599,1.62764176,3401.4,3401.3,0.463085]
[1719735894805,2.47864176,3401.4,3401.3,0.463085]
[1719735896302,2.47854381,3401.4,3401.3,0.463085]
[1719735897618,2.47854381,3401.4,3401.3,0.288085]
[1719735899503,2.47856359,3401.4,3401.3,0.288085]
[1719735899807,1.401,3401.4,3401.3,0.288085]
[1719735900008,2.47856353,3401.4,3401.3,0.288085]
[1719735901859,1.401,3401.4,3401.3,0.288085]
[1719735902003,2.47857645,3401.4,3401.3,0.288085]
[1719735902639,2.47856233,3401.4,3401.3,0.288085]
[1719735903315,1.62756233,3401.4,3401.3,0.288085]
[1719735903523,0.851,3401.4,3401.3,0.288085]
[1719735903706,1.92856233,3401.4,3401.3,2.740385]
[1719735903906,0.851,3401.4,3401.3,2.740385]
[1719735904327,1.92856233,3401.4,3401.3,2.740385]
[1719735904816,1.07756233,3401.4,3401.3,2.740385]
[1719735905018,8.46079732,3401.8,3401.3,2.740385]
[1719735905019,0.851,3401.5,3401.3,2.740385]